Cogmind - Beta 13 @@@ ROGUE MODE // 2024.07.07 @ 20:45:24 Player: RealTimeWarfare Result: Destroyed by Y-45 Defender with Beam Rifle Performance ------------- Evolutions (1) 500 Regions Visited (2) 400 Robots Destroyed (10) 50 Value Destroyed (332) 332 Prototype IDs (0) 0 Alien Tech Used (0) 0 Bonus (0) 0 TOTAL SCORE: 1282 Bonus ------- None Cogmind --------- Core Integrity 0/400 Matter 285/300 Energy 56/100 System Corruption 1% Temperature Cool (9) Movement Core (200) Ox3 Location -9/Materials Parts ------- > --- POWER (1) -------- (None) > --- PROPULSION (3) --- (None) > --- UTILITY (3) ------ Heat Sink Cooling System Small Storage Unit > --- WEAPON (2) ------- Spread Laser > --- INVENTORY (8) ---- Small Storage Unit Peak State ------------ > --- POWER ------------ Ion Engine > --- PROPULSION ------- Light Treads Light Treads Light Treads > --- UTILITY ---------- Small Storage Unit Backup Plating I > --- WEAPON ----------- Backup Laser I Assault Rifle > --- INVENTORY -------- Heat Sink Cooling System [Rating: 8] Favorites ----------- Power Ion Engine Engine Ion Engine Propulsion Light Treads Treads Light Treads Wheel Compact Wheel Utility Small Storage Unit Device Heat Sink Storage Small Storage Unit Protection Backup Plating I Weapon Assault Rifle Energy Gun EM Pulse Gun Ballistic Gun Assault Rifle Build | -11 -10 -9 ------- Run | Yrd Mat Mat Slots Evolved 2 | . . 2 Power . | . . . Propulsion 1 | . . 1 Utility 1 | . . 1 Weapon . | . . . Parts Attached 12 | 6 . 6 Power 1 | 1 . . Engine 1 | 1 . . Core . | . . . Reactor . | . . . Propulsion 4 | 2 . 2 Treads 3 | 2 . 1 Leg . | . . . Wheel 1 | . . 1 Hover . | . . . Flight . | . . . Utility 3 | 1 . 2 Device 2 | . . 2 Storage 1 | 1 . . Processor . | . . . Hackware . | . . . Protection . | . . . Artifact . | . . . Weapon 4 | 2 . 2 Energy Gun 2 | 1 . 1 Energy Cannon . | . . . Ballistic Gun 2 | 1 . 1 Ballistic Cannon . | . . . Launcher . | . . . Special Weapon . | . . . Impact Weapon . | . . . Slashing Weapon . | . . . Piercing Weapon . | . . . Special Melee Weapon . | . . . Unidentified Prototypes . | . . . Corrupted Parts 1 | . . 1 System Corruption 1 | . . 1 Parts Lost 10 | . 1 9 Power 1 | . . 1 Propulsion 4 | . . 4 Utility 1 | . . 1 Weapon 4 | . 1 3 Highest Loss Streak 5 | . 1 5 To Critical Strikes . | . . . Average Slot Usage (%) 64 | . 85 53 Engine 7 | . 14 3 Treads 19 | . 28 15 Device 6 | . . 9 Storage 12 | . 14 11 Protection 2 | . . 3 Energy Gun 8 | . 14 6 Ballistic Gun 7 | . 14 3 Naked Turns . | . . . Heaviest Build 14 | 14 14 14 Greatest Support 60 | 40 40 60 Greatest Overweight (x) 3 | 2 . 3 Average Overweight (x) . | . . . Largest Inventory Capacity 8 | 8 8 8 Average Capacity 7 | 7 8 8 Most Carried 3 | 2 2 3 Average Carried 1 | . 1 1 Final Capacity 8 | 8 8 8 Final Carried 2 | 1 2 1 Class Distribution -------------------- 100% | Mutant Dominant Class ---------------- Mutant | -10/Materials Mutant | -9/Materials Resources | -11 -10 -9 ----------- Run | Yrd Mat Mat Matter Collected 316 | 230 36 50 Remotely . | . . . Salvage Created 371 | . 41 330 Parts 18 | . 1 17 Haulers Intercepted . | . . . Recyclers Shooed . | . . . Parts Field Recycled . | . . . Retrieved Matter . | . . . Parts Self-Destructed . | . . . Prevented . | . . . Kills | -11 -10 -9 ------- Run | Yrd Mat Mat Combat Hostiles Destroyed 8 | . 1 7 Guns 6 | . 1 5 AOE 1 | . . 1 Classes Destroyed 4 | . 1 3 Worker 1 | . . 1 Recycler 1 | . . 1 Grunt 5 | . 1 4 Sentry 3 | . . 3 Best Kill Streak 2 | . 1 2 Combat Bots Only 1 | . 1 1 Max Kills in Single Turn 2 | . 1 2 Gunslinging . | . . . Exploded 1 | . . 1 Melee . | . . . Uniques/NPCs Destroyed . | . . . Combat | -11 -10 -9 -------- Run | Yrd Mat Mat Hostile Shots Fired 150 | . 24 126 Missed 37 | . 6 31 Damage Taken 1513 | . 198 1315 Core 435 | . 34 401 Absorbed by Shields . | . . . Core Remaining (%) 93 | 100 86 . Volleys Fired 55 | . 2 53 Largest 2 | . 2 2 Hottest 65 | . 60 65 Shots Fired 70 | . 4 66 Gun 70 | . 4 66 Cannon . | . . . Launcher . | . . . Special . | . . . Kinetic 22 | . 2 20 Thermal 46 | . . 46 Explosive . | . . . Electromagnetic 2 | . 2 . Robot Hit Streak 7 | . 1 7 Robot Miss Streak 2 | . 2 2 Penetration Max . | . . . Secondary Targets . | . . . Shots Hit Robots 41 | . 1 40 Core Hits 23 | . 1 22 Critical Kills . | . . . Critical Parts Destroyed 1 | . . 1 Critical Strikes 1 | . . 1 Destroy 1 | . . 1 Melee Attacks . | . . . Impact . | . . . Slashing . | . . . Piercing . | . . . Sneak Attacks . | . . . Combat Hostiles . | . . . Follow-up Attacks . | . . . Damage Inflicted 741 | . 15 726 Guns 437 | . 15 422 Cannons . | . . . Explosions 289 | . . 289 Melee . | . . . Ramming 15 | . . 15 Kinetic 121 | . . 121 Thermal 590 | . . 590 Explosive . | . . . Electromagnetic 15 | . 15 . Impact . | . . . Slashing . | . . . Piercing . | . . . Highest Corruption 1 | . . 1 Average Corruption 1 | . . 1 Corruption Purged . | . . . Corruption Blocked . | . . . Effects 2 | . . 2 Message Errors 1 | . . 1 Heat Flow Errors 1 | . . 1 Overload Shots . | . . . Overflow Damage 85 | . . 85 Projectiles . | . . . Explosions 85 | . . 85 Melee . | . . . Knockbacks . | . . . Impact . | . . . Kinetic . | . . . Secondary . | . . . Self-Inflicted Damage 111 | . . 111 Shots 1 | . . 1 Rammed 18 | . . 18 Targets Rammed 19 | . . 19 Kicked . | . . . Crushed 1 | . . 1 Highest Temperature 100 | . . 100 Average Temperature 31 | . . 31 Received Heat Transfer 666 | . 108 558 Siege Activations . | . . . Robots Corrupted . | . . . Combat Hostiles . | . . . Parts Fried . | . . . Impact Corruptions . | . . . Robots Melted 1 | . . 1 Combat Hostiles 1 | . . 1 Parts Melted 3 | . . 3 Heat Transferred 1246 | . . 1246 Parts Sabotaged . | . . . Parts Stolen . | . . . Parts Stripped . | . . . Power Chain Reactions . | . . . Alert | -11 -10 -9 ------- Run | Yrd Mat Mat Peak Influence 199 | . 75 199 Initial 27 | . . 27 Average 69 | . 44 92 Maximum Alert Level . | . . . Low Security (%) 100 | 100 100 100 Level 1 . | . . . Level 2 . | . . . Level 3 . | . . . Level 4 . | . . . Level 5 . | . . . High Security . | . . . Max Security . | . . . Squads Dispatched 7 | . 3 4 Investigation 4 | . 1 3 Extermination . | . . . Reinforcement 3 | . 2 1 Assault . | . . . Garrison . | . . . Intercept . | . . . Searches Triggered . | . . . Construction Impeded . | . . . Haulers Reinforced . | . . . Active Scanning Responses . | . . . Cargo Convoy Interrupts . | . . . Stealth | -11 -10 -9 --------- Run | Yrd Mat Mat Distress Signals . | . . . Communications Jammed . | . . . Distress Signals . | . . . Times Spotted 21 | . 7 14 Peak Tracking Total 4 | . 4 3 Tactical Retreats . | . . . Traps | -11 -10 -9 ------- Run | Yrd Mat Mat Traps Triggered . | . . . Indirectly . | . . . Trap Hack Attempts . | . . . Triggered . | . . . Disarmed . | . . . Reprogrammed . | . . . Reused . | . . . Traps Extracted . | . . . Installed . | . . . Triggered . | . . . Machines | -11 -10 -9 ---------- Run | Yrd Mat Mat Machines Disabled 2 | . 1 1 Max in Single Turn 1 | . 1 1 Machines Repaired . | . . . Machines Dismantled . | . . . Machines Sabotaged . | . . . Overloaded Fab Kills . | . . . Hacking | -11 -10 -9 --------- Run | Yrd Mat Mat Machines Accessed 5 | . 2 3 Terminals 4 | . 2 2 Fabricators . | . . . Repair Stations 1 | . . 1 Recycling Units . | . . . Scanalyzers . | . . . Garrison Access . | . . . Total Hacks 18 | . 7 11 Successful 7 | . . 7 Failed 11 | . 7 4 Catastrophic 2 | . 2 . Database Lockouts . | . . . Manual 10 | . 7 3 Terminals 15 | . 7 8 Fabricators . | . . . Repair Stations 3 | . . 3 Recycling Units . | . . . Scanalyzers . | . . . Garrison Access . | . . . Terminal Hacks 5 | . . 5 Robot Analysis 1 | . . 1 Unreport Threat 2 | . . 2 Dispatch Records 1 | . . 1 Surveillance Status 1 | . . 1 Fabricator Hacks . | . . . Repair Station Hacks 2 | . . 2 Scan Component 1 | . . 1 Refit 1 | . . 1 Recycling Unit Hacks . | . . . Scanalyzer . | . . . Garrison Access Hacks . | . . . Unauthorized Hacks . | . . . Terminals . | . . . Fabricators . | . . . Repair Stations . | . . . Recycling Units . | . . . Scanalyzers . | . . . Garrison Access . | . . . Data Cores Recovered . | . . . Used . | . . . Hacking Detections 5 | . 2 3 Full Trace Events 5 | . 2 3 Feedback Events . | . . . Feedback Blocked . | . . . Robot Schematics Acquired . | . . . Robots Built . | . . . Authchips . | . . . Time . | . . . Total Robot Build Rating . | . . . Part Schematics Acquired . | . . . Parts Built . | . . . Authchips . | . . . Time . | . . . Total Part Build Rating . | . . . Parts Repaired . | . . . Time . | . . . Parts Recycled . | . . . Recycled Matter . | . . . Retrieved Matter . | . . . Retrieved Components . | . . . Parts Scanalyzed . | . . . Part Schematics Acquired . | . . . Parts Damaged . | . . . Bothacking | -11 -10 -9 ------------ Run | Yrd Mat Mat Used RIF Installer . | . . . Robots Hacked . | . . . Non-combat . | . . . Combat . | . . . Robot Hacks Applied . | . . . Relay Couplers Released . | . . . Fabnet Peak Effective % . | . . . Robots Rewired . | . . . Allies Hacked . | . . . Hacks Repelled . | . . . Allies | -11 -10 -9 -------- Run | Yrd Mat Mat Total Allies . | . . . Largest Group . | . . . Highest-Rated Group . | . . . Highest-Rated Ally . | . . . Total Orders . | . . . Ally Attacks . | . . . Total Damage . | . . . Kills . | . . . Allies Corrupted . | . . . Allies Melted . | . . . Intel | -11 -10 -9 ------- Run | Yrd Mat Mat Robot Analysis Total 1 | . . 1 Derelict Logs Recovered . | . . . Drone Launches . | . . . Drone Recoveries . | . . . Exploration | -11 -10 -9 ------------- Run | Yrd Mat Mat Turns Passed 779 | 64 253 462 Spaces Moved 332 | 34 107 191 Core 15 | 9 . 6 Treads 306 | 25 107 174 Legs . | . . . Wheels 11 | . . 11 Hover . | . . . Flight . | . . . Fastest Speed 50 | 50 160 100 Average Speed 156 | 148 160 156 Slowest Speed 200 | 160 160 200 Overloaded Moves . | . . . Propulsion Burnouts . | . . . Robots Hopped . | . . . Cave-ins Triggered . | . . . Exploration Rate (%) 15 | 3 24 19 Regions Visited 2 Branch Regions . Pre-discovered Areas . | . . . Known Exits Taken . | . . . Unknown Exits Taken 2 | 1 1 . Scrap Searched . | . . . Spaces Dug . | . . . Terrain Destroyed 40 | . . 40 Melee . | . . . Projectile . | . . . AOE 40 | . . 40 Terrain Rammed . | . . . Walls Destroyed . | . . . Machines Disabled . | . . . Actions | -11 -10 -9 --------- Run | Yrd Mat Mat Total 509 | 48 185 276 Wait 80 | 2 76 2 Move 330 | 33 106 191 Hop . | . . . Pick Up 13 | 7 1 5 Fast Attach . | . . . Attach 12 | 6 . 6 Detach . | . . . Swap . | . . . Drop . | . . . Fire 55 | . 2 53 Melee . | . . . Ram . | . . . Kick . | . . . Crush 19 | . . 19 Escape Stasis . | . . . Rewire . | . . . Trap . | . . . Miscellaneous . | . . . Route ------- -11/Scrapyard -10/Materials -9/Materials (discovered 1 exit: [*Mat]) History --------- Turn | Location | Event 15 | -11/Scrapyard | Discovered new exit (range 15) 65 | -11/Scrapyard | Entered Materials 304 | -10/Materials | Discovered new exit (range 10) 313 | -10/Materials | Build established: Mutant 318 | -10/Materials | Entered another Materials area 318 | -9/Materials | Evolved 2 slots: Propulsion x1, Utility x1 543 | -9/Materials | Lost 5 parts (1p2n1u1w) 580 | -9/Materials | Core integrity fell below 50% 727 | -9/Materials | Discovered new exit (range 9) 749 | -9/Materials | Core integrity fell below 20% 780 | -9/Materials | Destroyed by Y-45 Defender with Beam Rifle Last Messages --------------- No threats on record. >>Analysis(N-00 Fly) Downloading analysis... N-00 Fly Tier: 1 Drones are a miniature version of the W-class Scout, launched by H-series robots to hunt down and report target positions. Like the watcher series they are extremely susceptible to electromagnetic attacks, while their tiny size also leaves them prone to being disabled by concussive blasts. Connecting with Terminal... ALERT: Suspicious activity at Terminal M011. Dispatching Investigation squad. Lgt. Treads destroyed. Com. Wheel destroyed. 5YQP9|Z|UOU%6DXA3O=NFHR% ,8 Acquired Spread Laser. G-34 Mercenary destroyed. Map ----- +----------------------------------------------------+ | | | ?????????????????????????????????????????????????? | | ?????????????????????????????????????????????????? | | ?????????????????????????????????????????????????? | | ?????????????????????????????????????????????????? | | ?????????????????????????????????????????????????? | | ?????????????????????????????????????????????????? | | ?????????????????????????????????????????????????? | | ?????????????????????????????????????????????????? | | ?????????????????????????????????????????????????? | | ?????????????????????????##??????????????????????? | | ??????????????????????? #??????????????????????? | | ????????????????????? #????????????????####??? | | ?????????????????+ ?Y #???????????????? ##?? | | ?????????????????# "" #???????????????# < ??? | | ?????????????????# #???????????????# #??? | | ?????????????????# """" #???######??????+ #??? | | ?????????????????? """" #??##!!!!##?????# #??? | | ???????????????????? """" #??# !#?????# #??? | | ?????????????????????? #??# #????## ##?? | | ????????? ##########+##### ###### #?? | | ????????? #?? | | ????????? % T #?? | | ????????? ! * #?? | | ????????? ! ##########g###### ######+### #?? | | ???????????????????# =Y@ ## #????????#######?? | | ???????????????????# ## #????????????????? | | ???????????????????# ## #????????????????? | | ???????????????????# """"" ## #????????????????? | | ???????????????????# """"" ## #????????????????? | | ???????????????????# """"" ## #????????????????? | | ???????????????????# ## #????????????????? | | ???????????????????# ## #????????????????? | | ???????????????????############ #?###############? | | ??????????????????????????????# #?# #? | | ???????????????################%### #? | | ???????????? # """"" """ %%#? | | ???????????? %%%% + """"" """ %%#? | | ???????????? # """"" """% %#? | | ?????????????#################+#### % #? | | ????????????????????????????# ############# ##? | | ????????????????????????????#/ #???????????###?? | | ????????????????????????????# #???????????????? | | ????????????????????????????# #???????????????? | | ????????????????????????????# #???????????????? | | ????????????????????????????# #???????????????? | | #################+########### #####???????????? | | !! T # " # ##??????????? | | !! # " #??????????? | | #""""""" #??????????? | +----------------------------------------------------+ Best States ------------- Heat Dissipation 50 Energy Generation 10 Energy Capacity 250 Matter Stores 300 Matter Capacity 300 Sight Range 16 Terrain Scan Density 10 Armor Coverage 80 Evasion (%) 40 Recoil Reduction 3 Item Schematics ----------------- None Robot Schematics ------------------ None Fabricated ------------ Nothing Alien Tech Used ----------------- None Achievements -------------- Everything Is Under Control It's Just You Challenges ------------ None Game ------ Seed QuantumFortressSabre Manual? 0 Play Time 00:18:01 Cumulative 3.5 hours Start 2024.07.07 @ 20:27:47 End 2024.07.07 @ 20:45:24 Sessions 1 Manual Loads 0 Difficulty Rogue Special Mode None Game No. 5 Rogue 5 Adventurer 0 Explorer 0 Win Type - Total 0 Types 0/0/0/0/0/0/0/0/0 Lore% 1 Gallery% 4 Achievement% 5 Wizard Run 0 Options --------- Layout 1 ASCII 0 Keyboard 0 Movement Numpad Keybinds 0 Fullscreen 1 Font 24/Smallcaps Map View 50x35 Zoom Use 0% Tactical HUD 0 Map Filters NONE Filters NONE Steam 1 RUN: 67af7f9f-7a4a-4f63-979f-1a5f8b81dac7